[Event "Late-Titled-Tuesday-Blitz-June-18-2024"]
[Site "Chess.com"]
[Date "2024.06.18"]
[Round "7"]
[White "Msb2"]
[Black "temus_galaktionov"]
[Result "1/2-1/2"]
[WhiteElo "3073"]
[BlackElo "2878"]
[TimeControl "180+1"]
[EndTime "15:20:14 PDT"]
[Termination "Game drawn by repetition"]

1. d4 {[%clk 0:03:00.9]} 1... c6 {[%clk 0:03:00.9]} 2. c4 {[%clk 0:03:00.4]}
2... g6 {[%clk 0:03:01.8]} 3. Nc3 {[%clk 0:03:00.2]} 3... d6 {[%clk 0:03:01.9]}
4. e4 {[%clk 0:03:00.1]} 4... Bg7 {[%clk 0:03:01.9]} 5. Nf3 {[%clk 0:02:59.9]}
5... Nd7 {[%clk 0:03:02.5]} 6. Be2 {[%clk 0:03:00.2]} 6... e5 {[%clk 0:03:03]}
7. Be3 {[%clk 0:02:59.5]} 7... Ngf6 {[%clk 0:03:01.9]} 8. O-O {[%clk 0:02:59.4]}
8... O-O {[%clk 0:02:56.6]} 9. Qc2 {[%clk 0:02:58.6]} 9... Qe7 {[%clk
0:02:55.8]} 10. Rad1 {[%clk 0:02:55.4]} 10... Re8 {[%clk 0:02:53.4]} 11. d5
{[%clk 0:02:55.1]} 11... c5 {[%clk 0:02:52.8]} 12. Ne1 {[%clk 0:02:55.6]} 12...
Rf8 {[%clk 0:02:52.7]} 13. Nd3 {[%clk 0:02:55.2]} 13... Ne8 {[%clk 0:02:52.4]}
14. b4 {[%clk 0:02:55.4]} 14... b6 {[%clk 0:02:52.2]} 15. bxc5 {[%clk
0:02:55.9]} 15... bxc5 {[%clk 0:02:53.1]} 16. f4 {[%clk 0:02:49.9]} 16... exf4
{[%clk 0:02:48]} 17. Bxf4 {[%clk 0:02:50.8]} 17... Ne5 {[%clk 0:02:48.3]} 18.
Nxe5 {[%clk 0:02:35.2]} 18... Bxe5 {[%clk 0:02:48.9]} 19. Bxe5 {[%clk
0:02:35.7]} 19... Qxe5 {[%clk 0:02:49.5]} 20. Qd2 {[%clk 0:02:36.1]} 20... Bd7
{[%clk 0:02:48.3]} 21. Rb1 {[%clk 0:02:28.6]} 21... Ng7 {[%clk 0:02:40.1]} 22.
Rb7 {[%clk 0:02:22.2]} 22... Bc8 {[%clk 0:02:39.6]} 23. Rb3 {[%clk 0:02:07.7]}
23... f5 {[%clk 0:02:39.2]} 24. Nb5 {[%clk 0:02:01.5]} 24... Bd7 {[%clk
0:02:32.8]} 25. Qf4 {[%clk 0:01:51.9]} 25... Qxf4 {[%clk 0:02:18.4]} 26. Rxf4
{[%clk 0:01:52.8]} 26... Bxb5 {[%clk 0:02:15.9]} 27. cxb5 {[%clk 0:01:51.5]}
27... g5 {[%clk 0:02:08]} 28. Rf1 {[%clk 0:01:51.6]} 28... fxe4 {[%clk
0:02:08.7]} 29. Rxf8+ {[%clk 0:01:47.4]} 29... Kxf8 {[%clk 0:02:09.6]} 30. Ra3
{[%clk 0:01:47]} 30... Nf5 {[%clk 0:02:05.3]} 31. b6 {[%clk 0:01:37.9]} 31... a5
{[%clk 0:02:05.3]} 32. b7 {[%clk 0:01:26.9]} 32... Rb8 {[%clk 0:02:05.3]} 33.
Ba6 {[%clk 0:01:27.6]} 33... Nd4 {[%clk 0:01:51.2]} 34. Rxa5 {[%clk 0:01:24.1]}
34... Ke7 {[%clk 0:01:49.5]} 35. Ra3 {[%clk 0:01:18.3]} 35... Kf6 {[%clk
0:01:47.1]} 36. Rh3 {[%clk 0:01:18.1]} 36... Kg6 {[%clk 0:01:44.5]} 37. Kf2
{[%clk 0:01:12.9]} 37... g4 {[%clk 0:01:41.2]} 38. Re3 {[%clk 0:00:54.7]} 38...
Kf5 {[%clk 0:01:40.7]} 39. Kg3 {[%clk 0:00:54.8]} 39... Nc2 {[%clk 0:01:36.2]}
40. Rb3 {[%clk 0:00:41.7]} 40... Nb4 {[%clk 0:01:35.9]} 41. Bc4 {[%clk
0:00:41.8]} 41... Ke5 {[%clk 0:01:25.8]} 42. a3 {[%clk 0:00:40.3]} 42... Kd4
{[%clk 0:01:23.5]} 43. axb4 {[%clk 0:00:34.3]} 43... Kxc4 {[%clk 0:01:22.4]} 44.
bxc5 {[%clk 0:00:34.9]} 44... dxc5 {[%clk 0:01:16.3]} 45. Rb1 {[%clk 0:00:34.4]}
45... Kxd5 {[%clk 0:01:16.1]} 46. Kxg4 {[%clk 0:00:34.1]} 46... c4 {[%clk
0:01:08]} 47. Kf4 {[%clk 0:00:33.7]} 47... Kd4 {[%clk 0:01:08.3]} 48. Rd1+
{[%clk 0:00:31.9]} 48... Kc3 {[%clk 0:01:06.1]} 49. Rd7 {[%clk 0:00:31.4]} 49...
Kb2 {[%clk 0:01:04.5]} 50. Rd4 {[%clk 0:00:07.6]} 50... c3 {[%clk 0:01:03.2]}
51. Rb4+ {[%clk 0:00:08.5]} 51... Ka3 {[%clk 0:01:01.7]} 52. Rb6 {[%clk
0:00:08.7]} 52... c2 {[%clk 0:01:00.1]} 53. Rc6 {[%clk 0:00:09.2]} 53... Kb2
{[%clk 0:00:59.9]} 54. Rb6+ {[%clk 0:00:09.7]} 54... Kc3 {[%clk 0:00:59.1]} 55.
Rc6+ {[%clk 0:00:08.9]} 55... Kd2 {[%clk 0:00:58.7]} 56. Rd6+ {[%clk 0:00:09.3]}
56... Ke2 {[%clk 0:00:34]} 57. Rc6 {[%clk 0:00:09.3]} 57... Rxb7 {[%clk
0:00:34.2]} 58. Rxc2+ {[%clk 0:00:09.7]} 58... Kd3 {[%clk 0:00:34.8]} 59. Ra2
{[%clk 0:00:10.1]} 59... Rf7+ {[%clk 0:00:34.5]} 60. Kg3 {[%clk 0:00:10.6]}
60... e3 {[%clk 0:00:34.9]} 61. Ra3+ {[%clk 0:00:11]} 61... Kd2 {[%clk
0:00:33.8]} 62. Ra2+ {[%clk 0:00:11.5]} 62... Kd3 {[%clk 0:00:34.2]} 63. Ra3+
{[%clk 0:00:12.1]} 63... Ke4 {[%clk 0:00:34.7]} 64. Ra4+ {[%clk 0:00:12.5]}
64... Kd5 {[%clk 0:00:34.9]} 65. Ra2 {[%clk 0:00:07.9]} 65... Ke4 {[%clk
0:00:30.8]} 66. Ra4+ {[%clk 0:00:07.9]} 66... Kd3 {[%clk 0:00:31.2]} 67. Ra3+
{[%clk 0:00:08.3]} 1/2-1/2

[Event "Late-Titled-Tuesday-Blitz-June-18-2024"]
[Site "Chess.com"]
[Date "2024.06.18"]
[Round "7"]
[White "baki83"]
[Black "Annawel"]
[Result "0-1"]
[WhiteElo "2823"]
[BlackElo "3074"]
[TimeControl "180+1"]
[EndTime "15:20:17 PDT"]
[Termination "Annawel won by resignation"]

1. e4 {[%clk 0:03:00.9]} 1... e6 {[%clk 0:02:57.6]} 2. d4 {[%clk 0:02:58]} 2...
d5 {[%clk 0:02:58.1]} 3. exd5 {[%clk 0:02:58.7]} 3... Qxd5 {[%clk 0:02:57.4]} 4.
Nf3 {[%clk 0:02:58.4]} 4... Nf6 {[%clk 0:02:55.3]} 5. c4 {[%clk 0:02:55.8]} 5...
Qa5+ {[%clk 0:02:52.6]} 6. Nc3 {[%clk 0:02:56.3]} 6... c5 {[%clk 0:02:45]} 7. d5
{[%clk 0:02:53.1]} 7... exd5 {[%clk 0:02:45.2]} 8. cxd5 {[%clk 0:02:53.1]} 8...
Bd6 {[%clk 0:02:44.5]} 9. Bb5+ {[%clk 0:02:47.2]} 9... Bd7 {[%clk 0:02:42.5]}
10. Qe2+ {[%clk 0:02:42.4]} 10... Kd8 {[%clk 0:02:42.7]} 11. O-O {[%clk
0:02:33.5]} 11... Re8 {[%clk 0:02:41.2]} 12. Qd3 {[%clk 0:02:30.8]} 12... h6
{[%clk 0:02:41.2]} 13. Bd2 {[%clk 0:02:27.1]} 13... Qc7 {[%clk 0:02:36.2]} 14.
Bc4 {[%clk 0:02:02.8]} 14... a6 {[%clk 0:02:33]} 15. a4 {[%clk 0:02:02.6]} 15...
Bg4 {[%clk 0:02:29.8]} 16. h3 {[%clk 0:01:50.4]} 16... Bxf3 {[%clk 0:02:29.6]}
17. Qxf3 {[%clk 0:01:51.1]} 17... Nbd7 {[%clk 0:02:30.3]} 18. Ba2 {[%clk
0:01:43.5]} 18... Ne5 {[%clk 0:02:23.8]} 19. Qf5 {[%clk 0:01:42.4]} 19... Qd7
{[%clk 0:02:23.6]} 20. Qxd7+ {[%clk 0:01:34.8]} 20... Kxd7 {[%clk 0:02:21.5]}
21. a5 {[%clk 0:01:31.9]} 21... Nd3 {[%clk 0:02:13.9]} 22. Bb3 {[%clk
0:01:25.8]} 22... Kc7 {[%clk 0:01:57.2]} 23. Na4 {[%clk 0:01:16.2]} 23... Re2
{[%clk 0:01:50.5]} 24. Rad1 {[%clk 0:00:56.2]} 24... Ne4 {[%clk 0:01:40.3]} 25.
Bc4 {[%clk 0:00:42.8]} 25... Rxd2 {[%clk 0:01:38.1]} 26. Bxd3 {[%clk 0:00:42.2]}
26... Re8 {[%clk 0:01:22.8]} 27. Rfe1 {[%clk 0:00:17.3]} 27... Rxd1 {[%clk
0:01:15.1]} 28. Rxd1 {[%clk 0:00:18.2]} 28... Nf6 {[%clk 0:00:54.6]} 29. Rc1
{[%clk 0:00:06.3]} 29... Nxd5 {[%clk 0:00:47.2]} 30. Nxc5 {[%clk 0:00:06.4]}
30... Bxc5 {[%clk 0:00:37]} 31. Rxc5+ {[%clk 0:00:06]} 31... Kd6 {[%clk
0:00:37.9]} 32. Rc1 {[%clk 0:00:05.3]} 32... Nf4 {[%clk 0:00:29.1]} 33. Bf1
{[%clk 0:00:05.2]} 33... Ne2+ {[%clk 0:00:29.4]} 34. Bxe2 {[%clk 0:00:05.6]}
34... Rxe2 {[%clk 0:00:30.3]} 35. Rd1+ {[%clk 0:00:03.5]} 35... Ke6 {[%clk
0:00:22.1]} 36. b3 {[%clk 0:00:02.9]} 36... Re5 {[%clk 0:00:19.3]} 37. b4 {[%clk
0:00:02.6]} 37... Re4 {[%clk 0:00:19.7]} 38. Rb1 {[%clk 0:00:03.2]} 38... Re5
{[%clk 0:00:08.6]} 39. Rc1 {[%clk 0:00:03.1]} 39... Kd6 {[%clk 0:00:08.5]} 40.
Rc4 {[%clk 0:00:02.5]} 40... g5 {[%clk 0:00:03.9]} 41. f3 {[%clk 0:00:01.8]}
41... f5 {[%clk 0:00:04.2]} 42. g4 {[%clk 0:00:01.9]} 42... f4 {[%clk 0:00:03]}
43. Kf2 {[%clk 0:00:02]} 43... Re3 {[%clk 0:00:03.2]} 44. Rd4+ {[%clk
0:00:02.5]} 44... Kc6 {[%clk 0:00:03.7]} 45. Rc4+ {[%clk 0:00:01.9]} 45... Kb5
{[%clk 0:00:02.7]} 46. Rc7 {[%clk 0:00:02.6]} 46... Kxb4 {[%clk 0:00:03.3]} 47.
Rxb7+ {[%clk 0:00:03.3]} 47... Kxa5 {[%clk 0:00:04]} 48. Rh7 {[%clk 0:00:03.9]}
48... Re6 {[%clk 0:00:04.5]} 49. h4 {[%clk 0:00:04.6]} 49... Kb4 {[%clk
0:00:04.3]} 50. hxg5 {[%clk 0:00:04.7]} 50... hxg5 {[%clk 0:00:05.2]} 51. Rg7
{[%clk 0:00:04.5]} 51... Re5 {[%clk 0:00:05.6]} 52. Rb7+ {[%clk 0:00:04.9]}
52... Rb5 {[%clk 0:00:05.5]} 53. Ra7 {[%clk 0:00:05.4]} 53... a5 {[%clk
0:00:05.8]} 54. Ke2 {[%clk 0:00:06.1]} 54... Rd5 {[%clk 0:00:06.1]} 55. Rb7+
{[%clk 0:00:05.8]} 55... Kc3 {[%clk 0:00:06.5]} 56. Ra7 {[%clk 0:00:06.2]} 56...
Kb3 {[%clk 0:00:06.1]} 57. Rb7+ {[%clk 0:00:06.7]} 57... Ka3 {[%clk 0:00:06.7]}
58. Rb5 {[%clk 0:00:05.2]} 58... Rxb5 {[%clk 0:00:06.7]} 0-1

[Event "Late-Titled-Tuesday-Blitz-June-18-2024"]
[Site "Chess.com"]
[Date "2024.06.18"]
[Round "7"]
[White "zverr1"]
[Black "slidingknight2775"]
[Result "0-1"]
[WhiteElo "2548"]
[BlackElo "2704"]
[TimeControl "180+1"]
[EndTime "15:20:25 PDT"]
[Termination "slidingknight2775 won on time"]

1. e4 {[%clk 0:03:00.9]} 1... c5 {[%clk 0:02:59.8]} 2. Nf3 {[%clk 0:03:00.8]}
2... d6 {[%clk 0:03:00.2]} 3. Nc3 {[%clk 0:03:00.9]} 3... a6 {[%clk 0:03:00.1]}
4. d4 {[%clk 0:02:58.2]} 4... cxd4 {[%clk 0:03:01]} 5. Nxd4 {[%clk 0:02:59.1]}
5... Nf6 {[%clk 0:03:01.3]} 6. h3 {[%clk 0:02:59.7]} 6... e5 {[%clk 0:02:54.2]}
7. Nde2 {[%clk 0:02:57.8]} 7... h5 {[%clk 0:02:53.2]} 8. g3 {[%clk 0:02:58]}
8... Be6 {[%clk 0:02:53]} 9. Bg2 {[%clk 0:02:57.7]} 9... Nbd7 {[%clk 0:02:53.5]}
10. a4 {[%clk 0:02:55.2]} 10... Rc8 {[%clk 0:02:52.9]} 11. O-O {[%clk
0:02:54.1]} 11... Be7 {[%clk 0:02:45.1]} 12. Be3 {[%clk 0:02:46.5]} 12... Nb6
{[%clk 0:02:43.3]} 13. b3 {[%clk 0:02:44.7]} 13... h4 {[%clk 0:02:35.9]} 14. g4
{[%clk 0:02:24.9]} 14... Nbd7 {[%clk 0:02:30.4]} 15. Nd5 {[%clk 0:02:08.7]}
15... Bxd5 {[%clk 0:02:26.9]} 16. exd5 {[%clk 0:02:09.6]} 16... O-O {[%clk
0:02:19.2]} 17. a5 {[%clk 0:02:02.7]} 17... Nh7 {[%clk 0:02:08.3]} 18. f4 {[%clk
0:01:40.2]} 18... exf4 {[%clk 0:02:07.1]} 19. Nxf4 {[%clk 0:01:31.8]} 19... Bg5
{[%clk 0:02:05.3]} 20. c4 {[%clk 0:01:26]} 20... Ne5 {[%clk 0:02:02.6]} 21. Bd4
{[%clk 0:01:18.7]} 21... Re8 {[%clk 0:01:50.9]} 22. Ra2 {[%clk 0:01:08.8]} 22...
Qd7 {[%clk 0:01:30.6]} 23. Raf2 {[%clk 0:01:02.4]} 23... Nf6 {[%clk 0:01:24.5]}
24. Kh1 {[%clk 0:00:43.7]} 24... Re7 {[%clk 0:01:01.2]} 25. Nd3 {[%clk
0:00:37.2]} 25... Ng6 {[%clk 0:00:40.4]} 26. Re2 {[%clk 0:00:28.8]} 26... Rce8
{[%clk 0:00:38.1]} 27. Rxe7 {[%clk 0:00:28.7]} 27... Rxe7 {[%clk 0:00:39]} 28.
Re1 {[%clk 0:00:24.8]} 28... Nf4 {[%clk 0:00:33.7]} 29. Nxf4 {[%clk 0:00:21.5]}
29... Bxf4 {[%clk 0:00:33.7]} 30. Rxe7 {[%clk 0:00:18.2]} 30... Qxe7 {[%clk
0:00:33.9]} 31. Bf3 {[%clk 0:00:13.9]} 31... Nd7 {[%clk 0:00:31.1]} 32. Qe2
{[%clk 0:00:11.7]} 32... Be5 {[%clk 0:00:25.5]} 33. Kg2 {[%clk 0:00:10]} 33...
Qf6 {[%clk 0:00:23.7]} 34. Be3 {[%clk 0:00:09.5]} 34... Qd8 {[%clk 0:00:15.5]}
35. Be4 {[%clk 0:00:09.4]} 35... Qxa5 {[%clk 0:00:15]} 36. Qf2 {[%clk
0:00:09.5]} 36... Nf6 {[%clk 0:00:14.3]} 37. Bf5 {[%clk 0:00:08.3]} 37... Qc3
{[%clk 0:00:13.9]} 38. Bg5 {[%clk 0:00:06.5]} 38... Qxb3 {[%clk 0:00:12.4]} 39.
Bxh4 {[%clk 0:00:05.1]} 39... Qxc4 {[%clk 0:00:12]} 40. g5 {[%clk 0:00:04.1]}
40... Qxd5+ {[%clk 0:00:11.3]} 41. Kf1 {[%clk 0:00:04.4]} 41... Qd1+ {[%clk
0:00:10.6]} 42. Kg2 {[%clk 0:00:04.3]} 42... Qd5+ {[%clk 0:00:11.1]} 43. Kf1
{[%clk 0:00:04.5]} 43... Ne4 {[%clk 0:00:11.7]} 44. Qe2 {[%clk 0:00:01.6]} 44...
Nc3 {[%clk 0:00:10.6]} 45. Qd3 {[%clk 0:00:01.4]} 45... Qxd3+ {[%clk 0:00:10.5]}
46. Bxd3 {[%clk 0:00:02.3]} 46... g6 {[%clk 0:00:09.1]} 47. Bf2 {[%clk
0:00:02.1]} 47... b5 {[%clk 0:00:08]} 48. Bb6 {[%clk 0:00:02.1]} 48... Kf8
{[%clk 0:00:06.6]} 49. Kf2 {[%clk 0:00:02.2]} 49... Nd5 {[%clk 0:00:06.3]} 50.
Ba7 {[%clk 0:00:01.5]} 50... Nb4 {[%clk 0:00:06.2]} 51. Be2 {[%clk 0:00:01.5]}
51... Nc6 {[%clk 0:00:06.6]} 52. Bb6 {[%clk 0:00:01.6]} 52... Bd4+ {[%clk
0:00:07.2]} 53. Bxd4 {[%clk 0:00:02.1]} 53... Nxd4 {[%clk 0:00:08.1]} 54. Bf1
{[%clk 0:00:02]} 54... Ke7 {[%clk 0:00:07.6]} 55. Ke3 {[%clk 0:00:02.9]} 55...
Ne6 {[%clk 0:00:08.2]} 56. h4 {[%clk 0:00:02.9]} 56... d5 {[%clk 0:00:08.4]} 57.
Bg2 {[%clk 0:00:02.5]} 57... Kd6 {[%clk 0:00:08.7]} 58. Kd3 {[%clk 0:00:01.6]}
58... Nf4+ {[%clk 0:00:08.6]} 0-1

[Event "Late-Titled-Tuesday-Blitz-June-18-2024"]
[Site "Chess.com"]
[Date "2024.06.18"]
[Round "7"]
[White "maximnovik"]
[Black "NajdorfPlayerc5"]
[Result "0-1"]
[WhiteElo "2561"]
[BlackElo "2455"]
[TimeControl "180+1"]
[EndTime "15:20:27 PDT"]
[Termination "NajdorfPlayerc5 won on time"]

1. e4 {[%clk 0:03:00.9]} 1... c5 {[%clk 0:02:54]} 2. Nf3 {[%clk 0:03:00.9]} 2...
d6 {[%clk 0:02:54.5]} 3. c3 {[%clk 0:03:01.1]} 3... Nf6 {[%clk 0:02:48.4]} 4. h3
{[%clk 0:03:01.3]} 4... Nbd7 {[%clk 0:02:44.4]} 5. Bd3 {[%clk 0:03:01.2]} 5...
b6 {[%clk 0:02:44.1]} 6. O-O {[%clk 0:03:01.2]} 6... Bb7 {[%clk 0:02:44.3]} 7.
Re1 {[%clk 0:03:01.4]} 7... e6 {[%clk 0:02:38.4]} 8. Bc2 {[%clk 0:03:01.1]} 8...
Be7 {[%clk 0:02:38.5]} 9. d4 {[%clk 0:03:01.2]} 9... O-O {[%clk 0:02:39.1]} 10.
e5 {[%clk 0:03:00.8]} 10... Nd5 {[%clk 0:02:22.1]} 11. Qd3 {[%clk 0:03:00.5]}
11... g6 {[%clk 0:02:19.7]} 12. Bh6 {[%clk 0:03:00.3]} 12... Re8 {[%clk
0:02:19.7]} 13. Qe2 {[%clk 0:02:26.3]} 13... dxe5 {[%clk 0:02:05.8]} 14. dxe5
{[%clk 0:02:25.9]} 14... Qc7 {[%clk 0:01:42]} 15. Nbd2 {[%clk 0:02:25.2]} 15...
Rad8 {[%clk 0:01:37.6]} 16. Rad1 {[%clk 0:02:24.7]} 16... Bf8 {[%clk 0:01:05.8]}
17. Bg5 {[%clk 0:02:18.9]} 17... Be7 {[%clk 0:01:03.1]} 18. Bxe7 {[%clk
0:01:00.7]} 18... Nxe7 {[%clk 0:01:00.8]} 19. Ne4 {[%clk 0:00:56.3]} 19... Bxe4
{[%clk 0:00:40.1]} 20. Qxe4 {[%clk 0:00:54.9]} 20... Nb8 {[%clk 0:00:33.7]} 21.
Qf4 {[%clk 0:00:49.2]} 21... Rxd1 {[%clk 0:00:17.9]} 22. Rxd1 {[%clk 0:00:49.2]}
22... Rd8 {[%clk 0:00:18.2]} 23. Rxd8+ {[%clk 0:00:44.5]} 23... Qxd8 {[%clk
0:00:19.1]} 24. Ng5 {[%clk 0:00:43.9]} 24... Qe8 {[%clk 0:00:16.9]} 25. Ne4
{[%clk 0:00:43.8]} 25... Nd5 {[%clk 0:00:15.7]} 26. Qf3 {[%clk 0:00:38.2]} 26...
Nc6 {[%clk 0:00:11.4]} 27. c4 {[%clk 0:00:35]} 27... Nxe5 {[%clk 0:00:11]} 28.
Qg3 {[%clk 0:00:33.7]} 28... Nxc4 {[%clk 0:00:06.6]} 29. Bb3 {[%clk 0:00:33.8]}
29... b5 {[%clk 0:00:03.5]} 30. Bxc4 {[%clk 0:00:29.3]} 30... bxc4 {[%clk
0:00:04.4]} 31. Qd6 {[%clk 0:00:23.6]} 31... Qb5 {[%clk 0:00:01.9]} 32. Nxc5
{[%clk 0:00:20.2]} 32... Qxb2 {[%clk 0:00:01.8]} 33. g3 {[%clk 0:00:18.4]} 33...
Qb1+ {[%clk 0:00:01.4]} 34. Kg2 {[%clk 0:00:17.9]} 34... Qb6 {[%clk 0:00:02]}
35. Qxb6 {[%clk 0:00:12.7]} 35... axb6 {[%clk 0:00:02.9]} 36. Ne4 {[%clk
0:00:11.3]} 36... b5 {[%clk 0:00:02.2]} 37. Kf3 {[%clk 0:00:10.8]} 37... Kf8
{[%clk 0:00:02.3]} 38. Ke2 {[%clk 0:00:11]} 38... Ke7 {[%clk 0:00:02.7]} 39. f4
{[%clk 0:00:11.4]} 39... f5 {[%clk 0:00:02.8]} 40. Ng5 {[%clk 0:00:10.5]} 40...
h6 {[%clk 0:00:03]} 41. Nf3 {[%clk 0:00:10.9]} 41... Kd6 {[%clk 0:00:03.1]} 42.
h4 {[%clk 0:00:09.4]} 42... Nc3+ {[%clk 0:00:03.3]} 43. Ke3 {[%clk 0:00:08.3]}
43... Nxa2 {[%clk 0:00:04.2]} 44. Ne5 {[%clk 0:00:07.7]} 44... g5 {[%clk
0:00:04.4]} 45. hxg5 {[%clk 0:00:07.4]} 45... hxg5 {[%clk 0:00:04.6]} 46. Nf7+
{[%clk 0:00:07.2]} 46... Ke7 {[%clk 0:00:04.6]} 47. Nxg5 {[%clk 0:00:07.5]}
47... b4 {[%clk 0:00:05.1]} 48. Kd4 {[%clk 0:00:07.4]} 48... b3 {[%clk
0:00:04.3]} 49. Nf3 {[%clk 0:00:03.7]} 49... b2 {[%clk 0:00:04.6]} 50. Nd2
{[%clk 0:00:04.2]} 50... c3 {[%clk 0:00:05.2]} 51. Nb1 {[%clk 0:00:02]} 51... c2
{[%clk 0:00:05.4]} 0-1

[Event "Late-Titled-Tuesday-Blitz-June-18-2024"]
[Site "Chess.com"]
[Date "2024.06.18"]
[Round "7"]
[White "Bykov_Egor"]
[Black "betta2004"]
[Result "0-1"]
[WhiteElo "2633"]
[BlackElo "2485"]
[TimeControl "180+1"]
[EndTime "15:20:30 PDT"]
[Termination "betta2004 won by resignation"]

1. Nf3 {[%clk 0:02:56.3]} 1... d5 {[%clk 0:02:41.2]} 2. b3 {[%clk 0:02:56.5]}
2... c5 {[%clk 0:02:40.5]} 3. e3 {[%clk 0:02:56.9]} 3... Nc6 {[%clk 0:02:41]} 4.
Bb2 {[%clk 0:02:57.2]} 4... Nf6 {[%clk 0:02:40.2]} 5. Be2 {[%clk 0:02:56.4]}
5... Bf5 {[%clk 0:02:36.2]} 6. O-O {[%clk 0:02:54.7]} 6... e6 {[%clk 0:02:35.1]}
7. d4 {[%clk 0:02:53.2]} 7... cxd4 {[%clk 0:02:34.7]} 8. Nxd4 {[%clk 0:02:49.3]}
8... Nxd4 {[%clk 0:02:34.2]} 9. Qxd4 {[%clk 0:02:47.6]} 9... a6 {[%clk
0:02:31.1]} 10. Nd2 {[%clk 0:02:18.5]} 10... Be7 {[%clk 0:02:30.4]} 11. c4
{[%clk 0:02:12.4]} 11... dxc4 {[%clk 0:02:27.7]} 12. Nxc4 {[%clk 0:02:10.3]}
12... O-O {[%clk 0:02:26.2]} 13. Nb6 {[%clk 0:02:02.8]} 13... Rb8 {[%clk
0:02:24]} 14. Bf3 {[%clk 0:02:01.5]} 14... Qxd4 {[%clk 0:02:20]} 15. Bxd4 {[%clk
0:02:01.2]} 15... Rfd8 {[%clk 0:02:20.1]} 16. Rac1 {[%clk 0:01:53.2]} 16... Ne8
{[%clk 0:02:20]} 17. Rfd1 {[%clk 0:01:36.3]} 17... f6 {[%clk 0:02:18]} 18. e4
{[%clk 0:01:31.4]} 18... Bg6 {[%clk 0:02:17.9]} 19. e5 {[%clk 0:01:31.4]} 19...
Kf7 {[%clk 0:02:10.7]} 20. Nc4 {[%clk 0:01:18.2]} 20... b5 {[%clk 0:02:07.8]}
21. Na5 {[%clk 0:01:18.2]} 21... Rbc8 {[%clk 0:02:04.2]} 22. Nc6 {[%clk
0:00:54.6]} 22... Rd7 {[%clk 0:02:04.3]} 23. exf6 {[%clk 0:00:54.4]} 23... gxf6
{[%clk 0:01:59.9]} 24. h4 {[%clk 0:00:28.8]} 24... e5 {[%clk 0:01:45.4]} 25. Be3
{[%clk 0:00:28.6]} 25... Rxd1+ {[%clk 0:01:44.5]} 26. Bxd1 {[%clk 0:00:28.7]}
26... Rc7 {[%clk 0:01:36.7]} 27. Bg4 {[%clk 0:00:22.2]} 27... Ba3 {[%clk
0:01:35.3]} 28. Nd8+ {[%clk 0:00:19.4]} 28... Ke7 {[%clk 0:01:30.5]} 29. Rxc7+
{[%clk 0:00:19.5]} 29... Nxc7 {[%clk 0:01:31.4]} 30. Nc6+ {[%clk 0:00:18.3]}
30... Kd6 {[%clk 0:01:30.4]} 31. Nb8 {[%clk 0:00:18]} 31... f5 {[%clk
0:01:28.2]} 32. Be2 {[%clk 0:00:16.4]} 32... Bc5 {[%clk 0:01:25.5]} 33. a4
{[%clk 0:00:09.4]} 33... Bxe3 {[%clk 0:01:24.6]} 34. fxe3 {[%clk 0:00:10]} 34...
f4 {[%clk 0:01:21.8]} 35. exf4 {[%clk 0:00:08.6]} 35... exf4 {[%clk 0:01:22.7]}
36. Kf2 {[%clk 0:00:07.2]} 36... Bc2 {[%clk 0:01:22.4]} 37. axb5 {[%clk
0:00:07]} 37... axb5 {[%clk 0:01:21.8]} 38. b4 {[%clk 0:00:07.6]} 38... Be4
{[%clk 0:01:20.9]} 39. Bf3 {[%clk 0:00:06.3]} 39... Bd5 {[%clk 0:01:12.2]} 40.
Ke2 {[%clk 0:00:04.7]} 40... Bc4+ {[%clk 0:01:08.6]} 41. Kd2 {[%clk 0:00:04.8]}
41... Nd5 {[%clk 0:01:07]} 42. Na6 {[%clk 0:00:04.4]} 42... Ne3 {[%clk
0:01:01.6]} 43. Nc5 {[%clk 0:00:04]} 43... Nf5 {[%clk 0:00:58.3]} 44. h5 {[%clk
0:00:03]} 44... Nd4 {[%clk 0:00:58.9]} 45. Be4 {[%clk 0:00:02.4]} 45... h6
{[%clk 0:00:58.7]} 46. Nd3 {[%clk 0:00:02.7]} 46... Ne6 {[%clk 0:00:44.8]} 47.
Bf5 {[%clk 0:00:03]} 47... Ng7 {[%clk 0:00:45.3]} 48. Bg4 {[%clk 0:00:02.6]}
48... Be6 {[%clk 0:00:34.5]} 49. Bf3 {[%clk 0:00:01.8]} 49... Bf7 {[%clk
0:00:28.1]} 50. Nxf4 {[%clk 0:00:02.4]} 50... Ke5 {[%clk 0:00:28.5]} 51. g3
{[%clk 0:00:02.9]} 51... Kd4 {[%clk 0:00:27.7]} 52. Ne2+ {[%clk 0:00:03.2]}
52... Kc4 {[%clk 0:00:26.8]} 53. g4 {[%clk 0:00:03.1]} 53... Kxb4 {[%clk
0:00:27]} 54. Bc6 {[%clk 0:00:02]} 54... Kc4 {[%clk 0:00:27.2]} 55. Nc3 {[%clk
0:00:01.7]} 55... b4 {[%clk 0:00:27.2]} 56. Ne4 {[%clk 0:00:01.6]} 56... Be6
{[%clk 0:00:23.5]} 57. Nf6 {[%clk 0:00:01.4]} 57... b3 {[%clk 0:00:23.2]} 58.
Kc1 {[%clk 0:00:01.8]} 58... Kc3 {[%clk 0:00:23.1]} 59. Kb1 {[%clk 0:00:01]}
59... b2 {[%clk 0:00:19]} 60. Ne4+ {[%clk 0:00:01.9]} 60... Kb3 {[%clk
0:00:18.2]} 61. Bb5 {[%clk 0:00:02.3]} 61... Ka3 {[%clk 0:00:17.9]} 62. Bd3
{[%clk 0:00:02.9]} 62... Ba2+ {[%clk 0:00:18.1]} 63. Kc2 {[%clk 0:00:03.5]}
63... b1=Q+ {[%clk 0:00:18.5]} 0-1